[Event "Early-Titled-Tuesday-Blitz-October-24-2023"]
[Site "Chess.com"]
[Date "2023.10.24"]
[Round "11"]
[White "nitpicker"]
[Black "Jojo_898"]
[Result "1/2-1/2"]
[WhiteElo "2258"]
[BlackElo "2339"]
[TimeControl "180+1"]
[EndTime "10:05:30 PDT"]
[Termination "Game drawn by 50-move rule"]

1. d4 {[%clk 0:03:00.9]} 1... Nf6 {[%clk 0:02:59.6]} 2. c4 {[%clk 0:02:59.9]}
2... g6 {[%clk 0:02:59.7]} 3. Nc3 {[%clk 0:02:59.5]} 3... Bg7 {[%clk 0:02:58.1]}
4. e4 {[%clk 0:02:59.6]} 4... d6 {[%clk 0:02:58.5]} 5. Be2 {[%clk 0:02:59.9]}
5... O-O {[%clk 0:02:58.6]} 6. Nf3 {[%clk 0:03:00.6]} 6... b6 {[%clk 0:02:59]}
7. a3 {[%clk 0:02:35.1]} 7... Bb7 {[%clk 0:02:58.6]} 8. Qc2 {[%clk 0:02:33.4]}
8... c5 {[%clk 0:02:55.5]} 9. d5 {[%clk 0:02:32.1]} 9... e6 {[%clk 0:02:55.9]}
10. O-O {[%clk 0:02:28.2]} 10... e5 {[%clk 0:02:55.3]} 11. b4 {[%clk 0:02:21.6]}
11... Nh5 {[%clk 0:02:54.5]} 12. g3 {[%clk 0:02:19.4]} 12... f5 {[%clk
0:02:49.8]} 13. Ng5 {[%clk 0:02:15.8]} 13... Bc8 {[%clk 0:02:44.5]} 14. Bxh5
{[%clk 0:02:05.7]} 14... gxh5 {[%clk 0:02:45.4]} 15. Ne6 {[%clk 0:02:04.4]}
15... Bxe6 {[%clk 0:02:44.3]} 16. dxe6 {[%clk 0:02:05.3]} 16... f4 {[%clk
0:02:31.5]} 17. b5 {[%clk 0:01:56.8]} 17... Qe7 {[%clk 0:02:14.4]} 18. Nd5
{[%clk 0:01:52.6]} 18... Qxe6 {[%clk 0:02:15]} 19. Nc7 {[%clk 0:01:48.7]} 19...
Qh3 {[%clk 0:02:15.5]} 20. f3 {[%clk 0:01:39.5]} 20... fxg3 {[%clk 0:02:11.9]}
21. hxg3 {[%clk 0:01:23.8]} 21... Qxg3+ {[%clk 0:02:11.8]} 22. Qg2 {[%clk
0:01:23.3]} 22... Qxg2+ {[%clk 0:02:11]} 23. Kxg2 {[%clk 0:01:22.9]} 23... Nd7
{[%clk 0:02:11.7]} 24. Nxa8 {[%clk 0:01:21.6]} 24... Rxa8 {[%clk 0:02:12.6]} 25.
Rd1 {[%clk 0:01:19.9]} 25... Bf8 {[%clk 0:02:09.7]} 26. f4 {[%clk 0:01:14.4]}
26... Kf7 {[%clk 0:02:02.6]} 27. a4 {[%clk 0:01:14.6]} 27... Be7 {[%clk
0:02:00.8]} 28. a5 {[%clk 0:01:14.9]} 28... Rg8+ {[%clk 0:01:59.1]} 29. Kf3
{[%clk 0:01:14.9]} 29... h4 {[%clk 0:01:58.2]} 30. axb6 {[%clk 0:01:02.4]} 30...
axb6 {[%clk 0:01:57.5]} 31. Ra7 {[%clk 0:00:59.9]} 31... Rg3+ {[%clk 0:01:56.3]}
32. Kf2 {[%clk 0:01:00.1]} 32... Nf6 {[%clk 0:01:56.2]} 33. fxe5 {[%clk
0:00:47.1]} 33... Nxe4+ {[%clk 0:01:55.6]} 34. Kf1 {[%clk 0:00:47]} 34... h3
{[%clk 0:01:18.1]} 35. exd6 {[%clk 0:00:37.2]} 35... Nxd6 {[%clk 0:01:18.1]} 36.
Rxd6 {[%clk 0:00:34.1]} 36... h2 {[%clk 0:01:17.9]} 37. Rh6 {[%clk 0:00:33.9]}
37... Rg1+ {[%clk 0:01:17.5]} 38. Kf2 {[%clk 0:00:33.9]} 38... h1=Q {[%clk
0:01:18.3]} 39. Rxh1 {[%clk 0:00:32.6]} 39... Rxh1 {[%clk 0:01:17.8]} 40. Bg5
{[%clk 0:00:33.1]} 40... Rh2+ {[%clk 0:01:15.3]} 41. Ke3 {[%clk 0:00:29.6]}
41... Rh3+ {[%clk 0:01:08.3]} 42. Kd2 {[%clk 0:00:25.1]} 42... Rh2+ {[%clk
0:01:07.2]} 43. Ke1 {[%clk 0:00:22.1]} 43... Rh1+ {[%clk 0:01:06.5]} 44. Kf2
{[%clk 0:00:22.2]} 44... Rh2+ {[%clk 0:01:06.1]} 45. Kg3 {[%clk 0:00:21.1]}
45... Re2 {[%clk 0:01:05.9]} 46. Rb7 {[%clk 0:00:19.5]} 46... Re6 {[%clk
0:00:52.3]} 47. Bxe7 {[%clk 0:00:16.6]} 47... Rxe7 {[%clk 0:00:53.2]} 48. Rxb6
{[%clk 0:00:17]} 48... Re4 {[%clk 0:00:53.9]} 49. Rc6 {[%clk 0:00:14.8]} 49...
Rxc4 {[%clk 0:00:54.4]} 50. b6 {[%clk 0:00:15.1]} 50... Rb4 {[%clk 0:00:50.8]}
51. Rxc5 {[%clk 0:00:15.2]} 51... Rxb6 {[%clk 0:00:51]} 52. Rc7+ {[%clk
0:00:14.5]} 52... Kg6 {[%clk 0:00:50.3]} 53. Rc5 {[%clk 0:00:15.2]} 53... h6
{[%clk 0:00:48.5]} 54. Rd5 {[%clk 0:00:14.7]} 54... Rb3+ {[%clk 0:00:47.8]} 55.
Kg2 {[%clk 0:00:13.8]} 55... Rb2+ {[%clk 0:00:47.3]} 56. Kg3 {[%clk 0:00:13.9]}
56... Rb4 {[%clk 0:00:46.2]} 57. Rd6+ {[%clk 0:00:12.9]} 57... Kg5 {[%clk
0:00:45.4]} 58. Rd5+ {[%clk 0:00:13.3]} 58... Kf6 {[%clk 0:00:43.7]} 59. Rd6+
{[%clk 0:00:13.4]} 59... Kg7 {[%clk 0:00:43.8]} 60. Rd7+ {[%clk 0:00:13.3]}
60... Kf8 {[%clk 0:00:43.6]} 61. Rd6 {[%clk 0:00:12.6]} 61... Rb3+ {[%clk
0:00:39]} 62. Kg4 {[%clk 0:00:11.9]} 62... Kg7 {[%clk 0:00:39.2]} 63. Rd7+
{[%clk 0:00:12]} 63... Kf6 {[%clk 0:00:39.5]} 64. Rd6+ {[%clk 0:00:12.3]} 64...
Ke5 {[%clk 0:00:39.8]} 65. Rxh6 {[%clk 0:00:11.9]} 65... Rb4+ {[%clk 0:00:40.2]}
66. Kg5 {[%clk 0:00:11.8]} 66... Rb2 {[%clk 0:00:41.1]} 67. Kg4 {[%clk
0:00:11.4]} 67... Rg2+ {[%clk 0:00:42]} 68. Kf3 {[%clk 0:00:11.4]} 68... Ra2
{[%clk 0:00:42.9]} 69. Rh5+ {[%clk 0:00:10.4]} 69... Kf6 {[%clk 0:00:42.8]} 70.
Rh6+ {[%clk 0:00:10]} 70... Kg5 {[%clk 0:00:42.6]} 71. Rc6 {[%clk 0:00:10.1]}
71... Ra3+ {[%clk 0:00:43.1]} 72. Ke4 {[%clk 0:00:10.3]} 72... Ra4+ {[%clk
0:00:43]} 73. Ke5 {[%clk 0:00:09.8]} 73... Ra1 {[%clk 0:00:42.4]} 74. Kd4 {[%clk
0:00:09.7]} 74... Kf5 {[%clk 0:00:41.7]} 75. Rc5+ {[%clk 0:00:09.4]} 75... Kf4
{[%clk 0:00:41.9]} 76. Rc3 {[%clk 0:00:08.6]} 76... Ra8 {[%clk 0:00:40.1]} 77.
Rc4 {[%clk 0:00:08]} 77... Rd8+ {[%clk 0:00:39.8]} 78. Kc3+ {[%clk 0:00:08]}
78... Ke3 {[%clk 0:00:40.5]} 79. Rc6 {[%clk 0:00:07.5]} 79... Rf8 {[%clk
0:00:38.9]} 80. Kc4 {[%clk 0:00:07.7]} 80... Re8 {[%clk 0:00:38.2]} 81. Rd6
{[%clk 0:00:07.5]} 81... Rc8+ {[%clk 0:00:37.5]} 82. Kd5 {[%clk 0:00:07.7]}
82... Rc2 {[%clk 0:00:37.6]} 83. Re6+ {[%clk 0:00:07.8]} 83... Kd3 {[%clk
0:00:37]} 84. Rg6 {[%clk 0:00:07.6]} 84... Rd2 {[%clk 0:00:37.1]} 85. Ke6 {[%clk
0:00:07.8]} 85... Re2+ {[%clk 0:00:36]} 86. Kf5 {[%clk 0:00:07.3]} 86... Rf2+
{[%clk 0:00:35.4]} 87. Ke5 {[%clk 0:00:07.7]} 87... Rh2 {[%clk 0:00:33.9]} 88.
Kf5 {[%clk 0:00:06.7]} 88... Rh5+ {[%clk 0:00:33.3]} 89. Rg5 {[%clk 0:00:06.6]}
89... Rh4 {[%clk 0:00:32.2]} 90. Rg4 {[%clk 0:00:06.5]} 90... Rh5+ {[%clk
0:00:31.8]} 91. Rg5 {[%clk 0:00:06.7]} 91... Rh6 {[%clk 0:00:31.5]} 92. Rg3+
{[%clk 0:00:06.5]} 92... Ke2 {[%clk 0:00:31.3]} 93. Rg5 {[%clk 0:00:06.1]} 93...
Rd6 {[%clk 0:00:30.7]} 94. Ke5 {[%clk 0:00:05.9]} 94... Rb6 {[%clk 0:00:30.7]}
95. Kf5 {[%clk 0:00:06]} 95... Rb5+ {[%clk 0:00:30.8]} 96. Kf6 {[%clk 0:00:06]}
96... Rb6+ {[%clk 0:00:30.8]} 97. Kf5 {[%clk 0:00:06.2]} 97... Kf3 {[%clk
0:00:31.4]} 98. Rg7 {[%clk 0:00:05.5]} 98... Rb5+ {[%clk 0:00:31.5]} 99. Ke6
{[%clk 0:00:05.9]} 99... Ke4 {[%clk 0:00:31.6]} 100. Rg4+ {[%clk 0:00:05.4]}
100... Kf3 {[%clk 0:00:31.7]} 101. Rc4 {[%clk 0:00:05.5]} 101... Ke3 {[%clk
0:00:31.8]} 102. Kf6 {[%clk 0:00:05.1]} 102... Kd3 {[%clk 0:00:31.6]} 103. Rg4
{[%clk 0:00:05.5]} 103... Rb6+ {[%clk 0:00:31.9]} 104. Kf5 {[%clk 0:00:05.7]}
104... Ke3 {[%clk 0:00:32.8]} 105. Rg3+ {[%clk 0:00:05.4]} 105... Kf2 {[%clk
0:00:33.3]} 106. Ra3 {[%clk 0:00:05.4]} 106... Rb5+ {[%clk 0:00:33.6]} 107. Kf4
{[%clk 0:00:05.6]} 107... Rb4+ {[%clk 0:00:33.8]} 108. Kf5 {[%clk 0:00:05.8]}
108... Rc4 {[%clk 0:00:34.3]} 109. Ke5 {[%clk 0:00:05.8]} 109... Rh4 {[%clk
0:00:33.6]} 110. Kf5 {[%clk 0:00:05.7]} 110... Rh5+ {[%clk 0:00:33.4]} 111. Kf4
{[%clk 0:00:06]} 111... Rh4+ {[%clk 0:00:33.5]} 112. Kf5 {[%clk 0:00:06.5]}
112... Rh5+ {[%clk 0:00:33.5]} 113. Kf4 {[%clk 0:00:06.8]} 113... Rb5 {[%clk
0:00:33.3]} 114. Ke4 {[%clk 0:00:06.9]} 114... Rb4+ {[%clk 0:00:33.2]} 115. Kf5
{[%clk 0:00:06.9]} 1/2-1/2